Cogmind - Beta 12 X1 @@@ ROGUE MODE // 2022.07.06 @ 22:51:41 Player: Espresso Result: Destroyed by P-70 Sage via exploding Fusion Modulator Performance ------------- Evolutions (5) 2500 Regions Visited (8) 1600 Robots Destroyed (20) 100 Value Destroyed (728) 728 Prototype IDs (3) 60 Alien Tech Used (0) 0 Bonus (634) 634 TOTAL SCORE: 5622 Bonus ------- Follower Combat Kills 134 Entered DSFs 500 Cogmind --------- Core Integrity 0/1000 Matter 22/300 Energy 98/100 System Corruption 0% Temperature Cool (21) Movement Core (50) Location -5/Factory Parts ------- > --- POWER (1) -------- (None) > --- PROPULSION (4) --- (None) > --- UTILITY (10) ----- (None) > --- WEAPON (2) ------- (None) > --- INVENTORY (5) ---- Autogun Long-range Missile Launcher Peak State ------------ > --- POWER ------------ Angular Momentum Engine > --- PROPULSION ------- Combat Airjet Combat Airjet Combat Airjet Combat Airjet > --- UTILITY ---------- Improved Cryofiber Web Improved Trap Scanner Advanced Visual Processing Unit System Guard Long-range Tractor Beam > --- WEAPON ----------- Heavy Assault Rifle > --- INVENTORY -------- VTOL Module VTOL Module VTOL Module VTOL Module Long-range Missile Launcher [Rating: 49] Favorites ----------- Power Light Nuclear Core Engine Light Ion Engine Power Core Light Nuclear Core Propulsion Aluminum Leg Leg Aluminum Leg Wheel Wheel Hover Unit Airjet Flight Unit VTOL Module Utility High-capacity Storage Unit Device Long-range Tractor Beam Storage High-capacity Storage Unit Processor Advanced Visual Processing Unit Hackware System Shield Weapon Heavy Particle Gun Energy Gun Heavy Particle Gun Energy Cannon Beam Cannon Ballistic Gun Heavy Assault Rifle Launcher Mini Grenade Launcher Impact Weapon Maul Build | -11 -10 -9 -9 -8 -7 -7 -6 -5 ------- Run | Scr Mat Mat Min Mat Fac DSF Fac Fac Slots Evolved 10 | . . 2 . 2 2 . 2 2 Power . | . . . . . . . . . Propulsion 2 | . . 2 . . . . . . Utility 8 | . . . . 2 2 . 2 2 Weapon . | . . . . . . . . . Parts Attached 95 | 6 2 13 . 6 . 34 27 7 Power 8 | 1 . 1 . . . 3 3 . Engine 3 | 1 . . . . . 1 1 . Core 5 | . . 1 . . . 2 2 . Reactor . | . . . . . . . . . Propulsion 47 | 2 . 9 . . . 17 15 4 Treads . | . . . . . . . . . Leg 7 | 2 . 5 . . . . . . Wheel 4 | . . . . . . 4 . . Hover 13 | . . 4 . . . . 9 . Flight 23 | . . . . . . 13 6 4 Utility 20 | 1 1 1 . 3 . 7 7 . Device 14 | . . 1 . 1 . 7 5 . Storage 3 | 1 1 . . 1 . . . . Processor 2 | . . . . . . . 2 . Hackware 1 | . . . . 1 . . . . Protection . | . . . . . . . . . Artifact . | . . . . . . . . . Weapon 20 | 2 1 2 . 3 . 7 2 3 Energy Gun 11 | 1 . 2 . 3 . 5 . . Energy Cannon 1 | . 1 . . . . . . . Ballistic Gun 3 | 1 . . . . . . 1 1 Ballistic Cannon . | . . . . . . . . . Launcher 4 | . . . . . . 1 1 2 Special Weapon . | . . . . . . . . . Impact Weapon 1 | . . . . . . 1 . . Slashing Weapon . | . . . . . . . . . Piercing Weapon . | . . . . . . . . . Special Melee Weapon . | . . . . . . . . . Unidentified Prototypes 3 | . . 1 . . . . 2 . Parts Lost 20 | . . 1 . . . 12 2 5 Power 2 | . . . . . . 2 . . Propulsion 9 | . . 1 . . . 4 . 4 Utility 8 | . . . . . . 6 2 . Weapon 1 | . . . . . . . . 1 Highest Loss Streak 5 | . . 1 . . . 5 1 3 To Critical Strikes 1 | . . . . . . . . 1 Average Slot Usage (%) 66 | . 85 93 100 92 84 48 52 15 Engine 3 | . 14 8 . . . 1 1 . Core 4 | . . 2 11 9 7 3 4 . Leg 14 | . 28 15 44 36 30 3 . . Hover 3 | . . 24 . . . . 1 . Flight 8 | . . . . . . 11 23 8 Device 6 | . . 8 11 9 7 6 8 . Storage 7 | . 14 11 11 14 15 6 . . Processor 2 | . . . . . . . 7 4 Hackware 1 | . . . . 5 7 3 . . Energy Gun 9 | . 14 20 22 17 15 5 . . Ballistic Gun 1 | . 9 . . . . . 3 . Naked Turns 60 | . . . . . . 49 . 11 Heaviest Build 58 | 11 47 52 52 58 58 58 21 3 Greatest Support 49 | 20 20 43 43 43 43 44 49 26 Greatest Overweight (x) 9 | . 2 2 1 1 1 9 4 . Average Overweight (x) . | . . 1 1 1 1 . . . Largest Inventory Capacity 20 | 8 20 20 20 20 20 20 5 5 Average Capacity 12 | 6 10 20 20 20 20 11 5 5 Most Carried 20 | . 5 13 13 14 14 20 5 5 Average Carried 7 | . 2 9 12 11 14 8 4 3 Final Capacity 20 | 8 20 20 20 20 20 5 5 5 Final Carried 14 | . 5 11 13 14 14 . 3 2 Class Distribution -------------------- 78% | Mutant 17% | Sprinter 3% | Scavenger-Mutant Dominant Class ---------------- Mutant | -10/Materials Mutant | -9/Materials Mutant | -9/Mines Mutant | -8/Materials Scavenger-Mutant | -7/Factory Mutant | -7/DSF Sprinter | -6/Factory Mutant | -5/Factory Resources | -11 -10 -9 -9 -8 -7 -7 -6 -5 ----------- Run | Scr Mat Mat Min Mat Fac DSF Fac Fac Matter Collected 1211 | 98 110 147 26 354 . 305 112 59 Remotely 637 | . . 147 26 354 . 110 . . Salvage Created 758 | . 110 147 . 123 . 237 . 141 Parts 35 | . 7 5 . 5 . 10 . 8 Haulers Intercepted . | . . . . . . . . . Recyclers Shooed 3 | . 2 . . . . . . 1 Parts Field Recycled . | . . . . . . . . . Retrieved Matter . | . . . . . . . . . Parts Self-Destructed . | . . . . . . . . . Prevented . | . . . . . . . . . Kills | -11 -10 -9 -9 -8 -7 -7 -6 -5 ------- Run | Scr Mat Mat Min Mat Fac DSF Fac Fac Combat Hostiles Destroyed 17 | . 2 3 . 2 . 7 . 3 Guns 8 | . 2 3 . 2 . 1 . . AOE 9 | . . . . . . 6 . 3 Classes Destroyed 6 | . 2 1 . 1 . 1 . 1 Worker 1 | . 1 . . . . . . . Builder 1 | . . . . . . . . 1 Operator 1 | . . . . 1 . . . . Swarmer 4 | . . . . . . 3 . 1 Grunt 12 | . 2 2 . 2 . 4 . 2 Duelist 1 | . . 1 . . . . . . Best Kill Streak 4 | . 3 2 . 3 . 3 . 4 Combat Bots Only 3 | . 2 2 . 2 . 3 . 3 Max Kills in Single Turn 3 | . 1 1 . 1 . 2 . 3 Gunslinging . | . . . . . . . . . Exploded 3 | . . . . . . 2 . 3 Melee . | . . . . . . . . . Uniques/NPCs Destroyed . | . . . . . . . . . Combat | -11 -10 -9 -9 -8 -7 -7 -6 -5 -------- Run | Scr Mat Mat Min Mat Fac DSF Fac Fac Damage Taken 3807 | . 100 259 . 167 . 1459 144 1678 Core 1848 | . 28 66 . . . 659 41 1054 Absorbed by Shields 264 | . . . . . . 264 . . Core Remaining (%) 78 | 100 88 . 83 100 . 5 95 . Volleys Fired 66 | . 8 15 . 12 . 14 11 6 Largest 2 | . 2 2 . 2 . 2 1 1 Hottest 110 | . 60 110 . 110 . 110 23 43 Shots Fired 105 | . 16 25 . 24 . 23 11 6 Gun 99 | . 16 25 . 24 . 20 11 3 Cannon . | . . . . . . . . . Launcher 6 | . . . . . . 3 . 3 Special . | . . . . . . . . . Kinetic 22 | . 8 . . . . . 11 3 Thermal 73 | . 8 25 . 24 . 16 . . Explosive 6 | . . . . . . 3 . 3 Electromagnetic 4 | . . . . . . 4 . . Robot Hit Streak 9 | . 9 5 . 6 . 7 8 3 Robot Miss Streak 3 | . 2 3 . 3 . 1 3 1 Penetration Max . | . . . . . . . . . Secondary Targets 2 | . 1 . . . . 1 . . Max Gunslinging Chain 1 | . 1 . . . . 1 . . Shots Hit Robots 63 | . 13 13 . 14 . 17 1 5 Core Hits 44 | . 6 4 . 5 . 14 . 15 Critical Kills . | . . . . . . . . . Critical Parts Destroyed . | . . . . . . . . . Critical Strikes 3 | . . 1 . 1 . 1 . . Burn 2 | . . 1 . 1 . . . . Corrupt 1 | . . . . . . 1 . . Melee Attacks . | . . . . . . . . . Impact . | . . . . . . . . . Slashing . | . . . . . . . . . Piercing . | . . . . . . . . . Sneak Attacks . | . . . . . . . . . Combat Hostiles . | . . . . . . . . . Follow-up Attacks . | . . . . . . . . . Damage Inflicted 2489 | . 155 258 . 273 . 779 40 984 Guns 996 | . 155 258 . 273 . 268 12 30 Cannons . | . . . . . . . . . Explosions 1456 | . . . . . . 511 . 945 Melee . | . . . . . . . . . Ramming 37 | . . . . . . . 28 9 Kinetic 116 | . 74 . . . . . 12 30 Thermal 863 | . 81 258 . 273 . 251 . . Explosive 1426 | . . . . . . 481 . 945 Electromagnetic 47 | . . . . . . 47 . . Impact . | . . . . . . . . . Slashing . | . . . . . . . . . Piercing . | . . . . . . . . . Highest Corruption 2 | . 2 . . . . . 1 . Average Corruption 1 | . 2 . . . . . 1 . Corruption Purged . | . . . . . . . . . Corruption Blocked . | . . . . . . . . . Overload Shots . | . . . . . . . . . Overflow Damage 36 | . . . . . . . . 36 Projectiles . | . . . . . . . . . Explosions 36 | . . . . . . . . 36 Melee . | . . . . . . . . . Knockbacks . | . . . . . . . . . Impact . | . . . . . . . . . Kinetic . | . . . . . . . . . Secondary . | . . . . . . . . . Self-Inflicted Damage 65 | . . . . . . 47 14 4 Shots 1 | . . . . . . 1 . . Rammed 3 | . . . . . . . 1 2 Targets Rammed 3 | . . . . . . . 1 2 Kicked . | . . . . . . . . . Crushed . | . . . . . . . . . Highest Temperature 396 | . 30 389 . 396 . 14 . . Average Temperature 167 | . 18 205 . 169 . 12 . . Received Heat Transfer 813 | . 39 105 . 108 . 420 12 129 Effects 3 | . . 3 . . . . . . Interference 2 | . . 2 . . . . . . Matter Decay 1 | . . 1 . . . . . . Siege Activations . | . . . . . . . . . Robots Corrupted . | . . . . . . . . . Combat Hostiles . | . . . . . . . . . Parts Fried . | . . . . . . . . . Impact Corruptions . | . . . . . . . . . Robots Melted . | . . . . . . . . . Combat Hostiles . | . . . . . . . . . Parts Melted 3 | . . 1 . 2 . . . . Heat Transferred 1853 | . 175 592 . 592 . 494 . . Parts Sabotaged . | . . . . . . . . . Parts Stolen . | . . . . . . . . . Parts Stripped . | . . . . . . . . . Power Chain Reactions 1 | . . . . . . 1 . . Missiles Intercepted . | . . . . . . . . . Alert | -11 -10 -9 -9 -8 -7 -7 -6 -5 ------- Run | Scr Mat Mat Min Mat Fac DSF Fac Fac Peak Influence 322 | . 84 143 55 212 4 135 205 322 Initial 70 | . . 35 55 21 4 2 70 . Average 75 | . 49 74 55 90 4 46 96 114 Maximum Alert Level 1 | . . . . 1 . . 1 1 Low Security (%) 95 | 100 100 100 100 89 100 100 95 82 Level 1 4 | . . . . 10 . . 4 17 Level 2 . | . . . . . . . . . Level 3 . | . . . . . . . . . Level 4 . | . . . . . . . . . Level 5 . | . . . . . . . . . High Security . | . . . . . . . . . Max Security . | . . . . . . . . . Squads Dispatched 10 | . . 1 . 1 . 1 2 5 Investigation 2 | . . . . . . . 1 1 Extermination 1 | . . . . . . . . 1 Reinforcement 6 | . . 1 . 1 . 1 1 2 Assault . | . . . . . . . . . Garrison 1 | . . . . . . . . 1 Intercept . | . . . . . . . . . Searches Triggered . | . . . . . . . . . Construction Impeded 1 | . . . . . . . . 1 Haulers Reinforced . | . . . . . . . . . Active Scanning Responses . | . . . . . . . . . Cargo Convoy Interrupts . | . . . . . . . . . Stealth | -11 -10 -9 -9 -8 -7 -7 -6 -5 --------- Run | Scr Mat Mat Min Mat Fac DSF Fac Fac Distress Signals 3 | . . . . 1 . . 2 . Communications Jammed . | . . . . . . . . . Distress Signals . | . . . . . . . . . Times Spotted 74 | . 4 8 . 8 . 13 12 29 Peak Tracking Total 12 | . 3 4 . 5 . 4 3 12 Tactical Retreats 7 | . . 1 . . . 1 1 4 Traps | -11 -10 -9 -9 -8 -7 -7 -6 -5 ------- Run | Scr Mat Mat Min Mat Fac DSF Fac Fac Traps Triggered 11 | . 2 . . . . 6 3 . Indirectly . | . . . . . . . . . Trap Hack Attempts . | . . . . . . . . . Triggered . | . . . . . . . . . Disarmed . | . . . . . . . . . Reprogrammed . | . . . . . . . . . Reused . | . . . . . . . . . Traps Extracted . | . . . . . . . . . Installed . | . . . . . . . . . Triggered . | . . . . . . . . . Machines | -11 -10 -9 -9 -8 -7 -7 -6 -5 ---------- Run | Scr Mat Mat Min Mat Fac DSF Fac Fac Machines Disabled . | . . . . . . . . . Max in Single Turn . | . . . . . . . . . Machines Sabotaged . | . . . . . . . . . Garrisons Compromised . | . . . . . . . . . Overloaded Fab Kills . | . . . . . . . . . Hacking | -11 -10 -9 -9 -8 -7 -7 -6 -5 --------- Run | Scr Mat Mat Min Mat Fac DSF Fac Fac Machines Accessed 10 | . 1 1 . 2 1 . 3 2 Terminals 8 | . 1 1 . 2 1 . 3 . Fabricators 1 | . . . . . . . . 1 Repair Stations . | . . . . . . . . . Recycling Units 1 | . . . . . . . . 1 Scanalyzers . | . . . . . . . . . Garrison Access . | . . . . . . . . . Total Hacks 23 | . 2 1 . 6 3 . 6 5 Successful 12 | . 1 1 . 5 1 . 3 1 Failed 11 | . 1 . . 1 2 . 3 4 Catastrophic 3 | . 1 . . . . . 1 1 Database Lockouts . | . . . . . . . . . Manual 3 | . . 2 . 1 . . . . Terminals 18 | . 2 1 . 6 3 . 6 . Fabricators 3 | . . . . . . . . 3 Repair Stations . | . . . . . . . . . Recycling Units 2 | . . . . . . . . 2 Scanalyzers . | . . . . . . . . . Garrison Access . | . . . . . . . . . Terminal Hacks 11 | . 1 1 . 5 1 . 3 . Record 4 | . . . . 2 . . 2 . Open DSF 2 | . . . . . 1 . 1 . Alert Level 1 | . . 1 . . . . . . Locate Traps 1 | . 1 . . . . . . . Maintenance Status 1 | . . . . 1 . . . . Reinforcement Status 1 | . . . . 1 . . . . Hauler Manifests 1 | . . . . 1 . . . . Fabricator Hacks 1 | . . . . . . . . 1 Build 1 | . . . . . . . . 1 Repair Station Hacks . | . . . . . . . . . Recycling Unit Hacks . | . . . . . . . . . Scanalyzer . | . . . . . . . . . Garrison Access Hacks . | . . . . . . . . . Unauthorized Hacks . | . . . . . . . . . Terminals . | . . . . . . . . . Fabricators . | . . . . . . . . . Repair Stations . | . . . . . . . . . Recycling Units . | . . . . . . . . . Scanalyzers . | . . . . . . . . . Garrison Access . | . . . . . . . . . Data Cores Recovered . | . . . . . . . . . Used . | . . . . . . . . . Hacking Detections 8 | . 1 . . 1 1 . 3 2 Full Trace Events 2 | . . . . . . . 1 1 Feedback Events . | . . . . . . . . . Feedback Blocked . | . . . . . . . . . Robot Schematics Acquired . | . . . . . . . . . Robots Built 1 | . . . . . . . . 1 Authchips . | . . . . . . . . . Time 40 | . . . . . . . . 40 Total Robot Build Rating 1 | . . . . . . . . 1 Part Schematics Acquired . | . . . . . . . . . Parts Built . | . . . . . . . . . Authchips . | . . . . . . . . . Time . | . . . . . . . . . Total Part Build Rating . | . . . . . . . . . Parts Repaired . | . . . . . . . . . Time . | . . . . . . . . . Parts Recycled . | . . . . . . . . . Recycled Matter . | . . . . . . . . . Retrieved Matter . | . . . . . . . . . Retrieved Components . | . . . . . . . . . Parts Scanalyzed . | . . . . . . . . . Part Schematics Acquired . | . . . . . . . . . Parts Damaged . | . . . . . . . . . Bothacking | -11 -10 -9 -9 -8 -7 -7 -6 -5 ------------ Run | Scr Mat Mat Min Mat Fac DSF Fac Fac Used RIF Installer . | . . . . . . . . . Robots Hacked . | . . . . . . . . . Non-combat . | . . . . . . . . . Combat . | . . . . . . . . . Robot Hacks Applied . | . . . . . . . . . Relay Couplers Released . | . . . . . . . . . Fabnet Peak Effective % . | . . . . . . . . . Robots Rewired . | . . . . . . . . . Allies Hacked . | . . . . . . . . . Hacks Repelled . | . . . . . . . . . Allies | -11 -10 -9 -9 -8 -7 -7 -6 -5 -------- Run | Scr Mat Mat Min Mat Fac DSF Fac Fac Total Allies 3 | . . . 2 . . . . 1 Largest Group 2 | . . . 2 2 . . . 1 Highest-Rated Group 48 | . . . 48 48 . . . 10 Highest-Rated Ally 31 | . . . 31 31 . . . 10 Total Orders 1 | . . . . . . . . 1 ROAM 1 | . . . . . . . . 1 Ally Attacks 10 | . . . . 10 . . . . Total Damage 166 | . . . . 166 . . . . Kills 4 | . . . . 4 . . . . Allies Corrupted . | . . . . . . . . . Allies Melted . | . . . . . . . . . Intel | -11 -10 -9 -9 -8 -7 -7 -6 -5 ------- Run | Scr Mat Mat Min Mat Fac DSF Fac Fac Robot Analysis Total . | . . . . . . . . . Derelict Logs Recovered . | . . . . . . . . . Drone Launches 2 | . . . . . . . 2 . Drone Recoveries . | . . . . . . . . . Exploration | -11 -10 -9 -9 -8 -7 -7 -6 -5 ------------- Run | Scr Mat Mat Min Mat Fac DSF Fac Fac Turns Passed 2358 | 54 265 348 64 424 12 437 475 279 Spaces Moved 2117 | 38 166 182 28 168 7 252 743 533 Core 130 | 5 . . . . . 83 2 40 Treads . | . . . . . . . . . Legs 484 | 33 166 66 28 168 7 16 . . Wheels 23 | . . . . . . 23 . . Hover 144 | . . 116 . . . . 28 . Flight 1336 | . . . . . . 130 713 493 Fastest Speed 26 | 50 120 108 190 190 190 26 26 37 Average Speed 75 | 110 136 139 190 190 190 99 33 38 Slowest Speed 760 | 120 260 190 190 190 190 760 250 50 Overloaded Moves 28 | . . . . . . . 28 . Propulsion Burnouts . | . . . . . . . . . Robots Hopped 11 | . . . . . . . 6 5 Cave-ins Triggered . | . . . . . . . . . Exploration Rate (%) 27 | 3 30 29 12 17 . 94 20 17 Regions Visited 8 Branch Regions 1 Pre-discovered Areas . | . . . . . . . . . Known Exits Taken 1 | . . . . . 1 . . . Unknown Exits Taken 6 | 1 1 1 1 1 . . 1 . Scrap Searched 1 | . . . 1 . . . . . Spaces Dug . | . . . . . . . . . Terrain Destroyed 42 | . . . . . . 15 . 27 Melee . | . . . . . . . . . Projectile . | . . . . . . . . . AOE 42 | . . . . . . 15 . 27 Terrain Rammed . | . . . . . . . . . Walls Destroyed . | . . . . . . . . . Machines Disabled . | . . . . . . . . . Actions | -11 -10 -9 -9 -8 -7 -7 -6 -5 --------- Run | Scr Mat Mat Min Mat Fac DSF Fac Fac Total 2740 | 47 190 251 39 249 6 407 953 598 Wait 317 | 4 9 23 10 58 . 29 139 45 Move 2090 | 37 165 181 27 167 6 251 732 524 Hop 8 | . . . . . . . 4 4 Pick Up 46 | . 5 14 2 3 . 7 11 4 Fast Attach 46 | 6 1 1 . 3 . 23 10 2 Attach 22 | . . 6 . 2 . 5 4 5 Detach 3 | . . . . . . . 1 2 Swap 27 | . 1 6 . 1 . 6 13 . Drop 43 | . 1 5 . 3 . 11 19 4 Fire 66 | . 8 15 . 12 . 14 11 6 Melee . | . . . . . . . . . Ram 3 | . . . . . . . 1 2 Kick . | . . . . . . . . . Crush . | . . . . . . . . . Escape Stasis 68 | . . . . . . 60 8 . Rewire 1 | . . . . . . 1 . . Trap . | . . . . . . . . . Miscellaneous . | . . . . . . . . . Route ------- -11/Scrapyard -10/Materials -9/Materials -9/Mines -8/Materials -7/Factory -7/DSF -6/Factory -5/Factory History --------- Turn | Location | Event 3 | -11/Scrapyard | Discovered new exit (range 15) 55 | -11/Scrapyard | Entered Materials 281 | -10/Materials | Discovered new exit (range 15) 313 | -10/Materials | Build established: Mutant 320 | -10/Materials | Entered another Materials area 320 | -9/Materials | Evolved 2 slots: Propulsion x2 644 | -9/Materials | Discovered new exit (range 9) 668 | -9/Materials | Entered Mines 707 | -9/Mines | Discovered new exit (range 8) 732 | -9/Mines | Entered Materials 732 | -8/Materials | Accompanied by 2 allies 732 | -8/Materials | Evolved 2 slots: Utility x2 737 | -8/Materials | Led the pair of lost Derelicts to an unsafe place 1152 | -8/Materials | Discovered new exit (range 3) 1156 | -8/Materials | Entered Factory 1156 | -7/Factory | Evolved 2 slots: Utility x2 1166 | -7/Factory | Identified exit to DSF 1168 | -7/Factory | Entered DSF 1169 | -7/DSF | Joined Warlord attack on 0b10 via DSF 1196 | -7/DSF | Additional patrols routed to DSF 1355 | -7/DSF | Released all parts (7) 1371 | -7/DSF | Discovered new exit (range 15) 1384 | -7/DSF | Lost 5 parts (1p3n1u) 1428 | -7/DSF | Released all parts (3) 1430 | -7/DSF | Core integrity fell below 50% 1530 | -7/DSF | Released all parts (4) 1546 | -7/DSF | Lost 4 parts (4u) 1562 | -7/DSF | Released all parts (4) 1565 | -7/DSF | Core integrity fell below 20% 1605 | -7/DSF | Entered Factory 1605 | -6/Factory | Evolved 2 slots: Utility x2 1929 | -6/Factory | Build established: Sprinter 2077 | -6/Factory | Discovered new exit (range 8) 2080 | -6/Factory | Entered another Factory area 2080 | -5/Factory | Evolved 2 slots: Utility x2 2193 | -5/Factory | Fabricated A-02 Transporter (x1) 2239 | -5/Factory | Build established: Mutant 2342 | -5/Factory | Core integrity fell below 50% 2343 | -5/Factory | Garrison activated, responded to threat 2356 | -5/Factory | Core integrity fell below 20% 2359 | -5/Factory | Destroyed by P-70 Sage via exploding Fusion Modulator Last Messages --------------- G-67 Veteran destroyed. S-27 Virus destroyed. Destroyed Com. Wheel. Penetrated by Slug. U-05 Engineer lays Concrete. U-05 Engineer destroyed. Destroyed Com. Wheel. ALERT: Construction progress impeded, dispatching reinforcements to local area. Penetrated by Slug. Discarded Adv. Visual Processing Unit. Penetrated by Slug. Slug penetrates Recycling Unit. Penetrated by Slug. Slammed into Y-64 Sentinel. Slug penetrates Y-64 Sentinel. Slug penetrates Fusion Modulator. Penetrated by Slug. Slug penetrates Fusion Modulator. Fusion Modulator explodes. Map ----- +----------------------------------------------------+ | ???????# !! !# #????????#"" [# ### | | ???????# # #????????# """ """ # #?? | | ???????# """ """ # #????????# """ """ # #?? | | ???????# """ """ " #????????# """ """ # #?? | | ######## """ """ # #????????# ##+#### | | # ## # #????????# # | | # #########/## #????????# + | | + #????????# # ! | | # ######+##### #????????############## | | # #??? ??# #???????????????############# | | ### ###?""" ! ## ##??????????????# #???? | | ??# T#?#""" # #?????########## #???? | | ??# #?#""" # #?????# # #???? | | ??# ##?# + +?????#""" # #???? | | ??# #??#""" # #?????#""" # #???? | | ??# #??#""" # #?????#""" !! #???? | | ###+#??#""" ### ###?????# ! #???? | | #??? #?# ######??#""" """ #???? | | #???########### ## | #??#""" Y" =% ##### | | #???# [ + #??#""" """ [[ ## | | ###?# #### = #??# % ## | | + #?# #??## ##?######p# |=h #### | | # #?# #???# #??# pY =gm # | | # ########+######## #### ! + | | # % # "" | | # @ ############### "" | | ##### #???? #????# "" | | % #?? """ #????# | | % # """ #????#### | | u Y + """ #???????? | | h Y # ! #???????? | | w #?? """ #???????? | | """"""" ############ " " h #????""" #???????? | | "" """" #??????????# o"T" # """ #???????? | | """"""" #??????????# """ + #???????? | | """"""" #??????????# #####+###########????????? | | #??????????# #?? ?????????????????? | | +??????????# # !???????????????? | | ###### #??????????# # "" "" #??????????????? | | #????# #??????????# # ""G"" #??????????????? | | +????# #??????????#/###########??????????????? | | #????# #?????????? ?????????????????????????? | | #????# #??????????""?????????????????????????? | | #????# #??????????""?????????????????????????? | | #????# #??????????""?????????????????????????? | | #????# ?????????????????????????????????????? | | #????# ????????????????????????????????????? | | ???? #???????????????????????????????????? | | ???? #???????????????????????????????????? | | ???? +???????????????????????????????????? | +----------------------------------------------------+ Best States ------------- Heat Dissipation 48 Energy Generation 25 Energy Capacity 300 Matter Stores 500 Matter Capacity 500 Sight Range 20 Terrain Scan Density 10 Power Amplification 20 Base Temperature (-) 150 Corruption Containment 8 Evasion (%) 64 Defensive Hacking 10 Item Schematics ----------------- None Robot Schematics ------------------ None Fabricated ------------ A-02 Transporter | x1 | -5/Factory | Preloaded Alien Tech Used ----------------- None Achievements -------------- None Challenges ------------ None Game ------ Seed MomentumDynamicReactor Manual? 0 Play Time 00:39:26 Cumulative 3.5 hours Start 2022.07.06 @ 22:11:17 End 2022.07.06 @ 22:51:41 Sessions 1 Manual Loads 0 Difficulty Rogue Special Mode None Game No. 19 Rogue 19 Adventurer 0 Explorer 0 Win Type - Total 0 Types 0/0/0/0/0/0/0/0/0 Lore% 6 Gallery% 13 Achievement% 17 Wizard Run 0 Options --------- ASCII 0 Keyboard 0 Movement Numpad Keybinds 0 Fullscreen 1 Font 24/Terminus Map View 76x50 Tactical HUD 0 Map Filters NONE Filters NONE Steam 1 RUN: 565d73c9-1409-44d9-af57-dcfdc809c194